Cogmind - Beta 13 @@@ ROGUE MODE // 2024.04.08 @ 18:10:47 Player: GwenMeow Result: Destroyed by BH-0L3(R) with Subdweller Machine Gun Performance ------------- Evolutions (0) 0 Regions Visited (2) 400 Robots Destroyed (28) 140 Value Destroyed (734) 734 Prototype IDs (0) 0 Alien Tech Used (0) 0 Bonus (-86) -86 TOTAL SCORE: 1188 Bonus ------- Friendly Fire -86 Cogmind --------- Core Integrity 0/250 Matter 249/300 Energy 242/250 System Corruption 1% Temperature Cool (0) Movement Walking (120) Location -10/Subcaves Parts ------- > --- POWER (1) -------- Ion Engine > --- PROPULSION (2) --- Aluminum Leg Aluminum Leg > --- UTILITY (2) ------ (None) > --- WEAPON (2) ------- Subdweller Laser Grenade Launcher > --- INVENTORY (5) ---- Aluminum Leg Improved Heat Sink Large Storage Unit Assault Rifle Grenade Launcher Peak State ------------ > --- POWER ------------ Ion Engine > --- PROPULSION ------- Aluminum Leg Aluminum Leg > --- UTILITY ---------- Improved Heat Sink Small Storage Unit > --- WEAPON ----------- Particle Gun Assault Rifle > --- INVENTORY -------- (None) [Rating: 10] Favorites ----------- Power Ion Engine Engine Ion Engine Propulsion Aluminum Leg Leg Aluminum Leg Utility Small Storage Unit Device Sensor Array Storage Small Storage Unit Processor Signal Interpreter Protection Scrap Shield Weapon Assault Rifle Energy Gun Particle Gun Ballistic Gun Assault Rifle Launcher Grenade Launcher Build | -11 -10 -10 ------- Run | Yrd Mat Sub Slots Evolved . | . . . Power . | . . . Propulsion . | . . . Utility . | . . . Weapon . | . . . Parts Attached 29 | 7 18 4 Power 3 | 1 2 . Engine 3 | 1 2 . Core . | . . . Reactor . | . . . Propulsion 9 | 2 6 1 Treads . | . . . Leg 9 | 2 6 1 Wheel . | . . . Hover . | . . . Flight . | . . . Utility 5 | 1 3 1 Device 2 | . 2 . Storage 1 | 1 . . Processor 1 | . 1 . Hackware . | . . . Protection 1 | . . 1 Artifact . | . . . Weapon 12 | 3 7 2 Energy Gun 5 | 2 2 1 Energy Cannon . | . . . Ballistic Gun 5 | 1 4 . Ballistic Cannon . | . . . Launcher 2 | . 1 1 Special Weapon . | . . . Impact Weapon . | . . . Slashing Weapon . | . . . Piercing Weapon . | . . . Special Melee Weapon . | . . . Unidentified Prototypes . | . . . Parts Lost 2 | . 1 1 Power . | . . . Propulsion . | . . . Utility 2 | . 1 1 Weapon . | . . . Highest Loss Streak 1 | . 1 1 To Critical Strikes . | . . . Average Slot Usage (%) 93 | . 94 85 Engine 14 | . 14 14 Leg 27 | . 27 28 Device 8 | . 9 . Storage 12 | . 14 1 Protection 1 | . . 12 Energy Gun 8 | . 8 8 Ballistic Gun 16 | . 18 5 Launcher 2 | . . 14 Naked Turns . | . . . Heaviest Build 30 | 13 16 30 Greatest Support 20 | 20 20 20 Greatest Overweight (x) 2 | 2 1 1 Average Overweight (x) . | . . . Largest Inventory Capacity 8 | 8 8 8 Average Capacity 7 | 6 8 5 Most Carried 8 | 3 8 8 Average Carried 4 | . 4 5 Final Capacity 8 | 8 8 5 Final Carried 7 | . 7 5 Class Distribution -------------------- 78% | Mutant 21% | Scavenger-Mutant Dominant Class ---------------- Mutant | -10/Materials Scavenger-Mutant | -10/Subcaves Resources | -11 -10 -10 ----------- Run | Yrd Mat Sub Matter Collected 905 | 237 529 139 Remotely . | . . . Salvage Created 979 | . 796 183 Parts 60 | . 44 16 Haulers Intercepted 1 | . 1 . Recyclers Shooed 1 | . 1 . Parts Field Recycled . | . . . Retrieved Matter . | . . . Parts Self-Destructed 8 | . . 8 Prevented . | . . . Kills | -11 -10 -10 ------- Run | Yrd Mat Sub Combat Hostiles Destroyed 19 | . 13 6 Guns 12 | . 12 . AOE 7 | . 1 6 Classes Destroyed 9 | . 7 2 Worker 2 | . 2 . Hauler 1 | . 1 . Recycler 2 | . 2 . Operator 1 | . 1 . Turret 1 | . . 1 Watcher 2 | . 2 . Swarmer 3 | . 2 1 Grunt 11 | . 11 . Subdweller 5 | . . 5 Best Kill Streak 4 | . 4 4 Combat Bots Only 4 | . 4 4 Max Kills in Single Turn 2 | . 2 2 Gunslinging 1 | . 1 . Exploded 2 | . 1 2 Melee . | . . . Uniques/NPCs Destroyed . | . . . Combat | -11 -10 -10 -------- Run | Yrd Mat Sub Hostile Shots Fired 137 | . 89 48 Missed 47 | . 28 19 Damage Taken 1088 | . 710 378 Core 269 | . 217 52 Absorbed by Shields . | . . . Regen/Repaired (Parts) 164 | . 164 . Core Remaining (%) 100 | 100 . . Volleys Fired 114 | . 105 9 Largest 2 | . 2 2 Hottest 90 | . 85 90 Shots Fired 222 | . 206 16 Gun 214 | . 205 9 Cannon . | . . . Launcher 8 | . 1 7 Special . | . . . Kinetic 136 | . 134 2 Thermal 78 | . 71 7 Explosive 8 | . 1 7 Electromagnetic . | . . . Robot Hit Streak 10 | . 10 4 Robot Miss Streak 7 | . 7 2 Penetration Max . | . . . Secondary Targets 3 | . 3 . Max Gunslinging Chain 1 | . 1 . Shots Hit Robots 104 | . 96 8 Core Hits 45 | . 32 13 Critical Kills . | . . . Critical Parts Destroyed 1 | . 1 . Critical Strikes 1 | . 1 . Destroy 1 | . 1 . Melee Attacks . | . . . Impact . | . . . Slashing . | . . . Piercing . | . . . Sneak Attacks . | . . . Combat Hostiles . | . . . Follow-up Attacks . | . . . Damage Inflicted 2162 | . 1350 812 Guns 1369 | . 1311 58 Cannons . | . . . Explosions 793 | . 39 754 Melee . | . . . Ramming . | . . . Kinetic 811 | . 811 . Thermal 558 | . 500 58 Explosive 793 | . 39 754 Electromagnetic . | . . . Impact . | . . . Slashing . | . . . Piercing . | . . . Highest Corruption 1 | . 1 1 Average Corruption 1 | . 1 1 Corruption Purged . | . . . Corruption Blocked . | . . . Effects 13 | . 10 3 Message Errors 3 | . 2 1 Matter Fused 3 | . 2 1 Heat Flow Errors 1 | . 1 . Energy Discharges 2 | . 1 1 Data Loss (minor) 2 | . 2 . Data Loss (major) 1 | . 1 . Misfires 1 | . 1 . Overload Shots . | . . . Overflow Damage . | . . . Projectiles . | . . . Explosions . | . . . Melee . | . . . Knockbacks . | . . . Impact . | . . . Kinetic . | . . . Secondary . | . . . Self-Inflicted Damage . | . . . Shots . | . . . Rammed . | . . . Targets Rammed . | . . . Kicked . | . . . Crushed . | . . . Highest Temperature 298 | . 298 . Average Temperature 80 | . 80 . Received Heat Transfer 279 | . 222 57 Siege Activations . | . . . Robots Corrupted . | . . . Combat Hostiles . | . . . Parts Fried . | . . . Impact Corruptions . | . . . Robots Melted . | . . . Combat Hostiles . | . . . Parts Melted 1 | . 1 . Heat Transferred 1285 | . 1210 75 Parts Sabotaged . | . . . Parts Stolen . | . . . Parts Stripped . | . . . Power Chain Reactions . | . . . Alert | -11 -10 -10 ------- Run | Yrd Mat Sub Peak Influence 154 | . 154 . Initial . | . . . Average 60 | . 62 . Maximum Alert Level . | . . . Low Security (%) 100 | 100 100 . Level 1 . | . . . Level 2 . | . . . Level 3 . | . . . Level 4 . | . . . Level 5 . | . . . High Security . | . . . Max Security . | . . . Squads Dispatched 4 | . 4 . Investigation 2 | . 2 . Extermination . | . . . Reinforcement 2 | . 2 . Assault . | . . . Garrison . | . . . Intercept . | . . . Searches Triggered . | . . . Construction Impeded . | . . . Haulers Reinforced . | . . . Active Scanning Responses . | . . . Cargo Convoy Interrupts . | . . . Stealth | -11 -10 -10 --------- Run | Yrd Mat Sub Distress Signals 1 | . 1 . Communications Jammed . | . . . Distress Signals . | . . . Times Spotted 72 | . 32 40 Peak Tracking Total 6 | . 6 6 Tactical Retreats 2 | . . 2 Traps | -11 -10 -10 ------- Run | Yrd Mat Sub Traps Triggered 4 | . 4 . Indirectly . | . . . Trap Hack Attempts . | . . . Triggered . | . . . Disarmed . | . . . Reprogrammed . | . . . Reused . | . . . Traps Extracted . | . . . Installed . | . . . Triggered . | . . . Machines | -11 -10 -10 ---------- Run | Yrd Mat Sub Machines Disabled 1 | . 1 . Max in Single Turn 1 | . 1 . Machines Repaired . | . . . Machines Dismantled . | . . . Machines Sabotaged . | . . . Overloaded Fab Kills . | . . . Hacking | -11 -10 -10 --------- Run | Yrd Mat Sub Machines Accessed 4 | . 4 . Terminals 2 | . 2 . Fabricators . | . . . Repair Stations 1 | . 1 . Recycling Units 1 | . 1 . Scanalyzers . | . . . Garrison Access . | . . . Total Hacks 10 | . 10 . Successful 9 | . 9 . Failed 1 | . 1 . Catastrophic 1 | . 1 . Database Lockouts . | . . . Manual . | . . . Terminals 2 | . 2 . Fabricators . | . . . Repair Stations 6 | . 6 . Recycling Units 2 | . 2 . Scanalyzers . | . . . Garrison Access . | . . . Terminal Hacks 1 | . 1 . Recall Investigation 1 | . 1 . Fabricator Hacks . | . . . Repair Station Hacks 6 | . 6 . Scan Component 3 | . 3 . Repair 3 | . 3 . Recycling Unit Hacks 2 | . 2 . Report Inventory 1 | . 1 . Retrieve Matter 1 | . 1 . Scanalyzer . | . . . Garrison Access Hacks . | . . . Unauthorized Hacks . | . . . Terminals . | . . . Fabricators . | . . . Repair Stations . | . . . Recycling Units . | . . . Scanalyzers . | . . . Garrison Access . | . . . Data Cores Recovered . | . . . Used . | . . . Hacking Detections 3 | . 3 . Full Trace Events . | . . . Feedback Events . | . . . Feedback Blocked . | . . . Robot Schematics Acquired . | . . . Robots Built . | . . . Authchips . | . . . Time . | . . . Total Robot Build Rating . | . . . Part Schematics Acquired . | . . . Parts Built . | . . . Authchips . | . . . Time . | . . . Total Part Build Rating . | . . . Parts Repaired 3 | . 3 . Time 84 | . 84 . Parts Recycled . | . . . Recycled Matter . | . . . Retrieved Matter 69 | . 69 . Retrieved Components . | . . . Parts Scanalyzed . | . . . Part Schematics Acquired . | . . . Parts Damaged . | . . . Bothacking | -11 -10 -10 ------------ Run | Yrd Mat Sub Used RIF Installer . | . . . Robots Hacked . | . . . Non-combat . | . . . Combat . | . . . Robot Hacks Applied . | . . . Relay Couplers Released . | . . . Fabnet Peak Effective % . | . . . Robots Rewired . | . . . Allies Hacked . | . . . Hacks Repelled . | . . . Allies | -11 -10 -10 -------- Run | Yrd Mat Sub Total Allies . | . . . Largest Group . | . . . Highest-Rated Group . | . . . Highest-Rated Ally . | . . . Total Orders . | . . . Ally Attacks . | . . . Total Damage . | . . . Kills . | . . . Allies Corrupted . | . . . Allies Melted . | . . . Intel | -11 -10 -10 ------- Run | Yrd Mat Sub Robot Analysis Total . | . . . Derelict Logs Recovered 1 | . . 1 Drone Launches . | . . . Drone Recoveries . | . . . Exploration | -11 -10 -10 ------------- Run | Yrd Mat Sub Turns Passed 1860 | 67 1550 243 Spaces Moved 1019 | 55 853 111 Core 32 | 32 . . Treads . | . . . Legs 987 | 23 853 111 Wheels . | . . . Hover . | . . . Flight . | . . . Fastest Speed 50 | 50 120 120 Average Speed 125 | 93 120 183 Slowest Speed 190 | 150 190 190 Overloaded Moves . | . . . Propulsion Burnouts . | . . . Robots Hopped . | . . . Cave-ins Triggered . | . . . Exploration Rate (%) 31 | 4 81 8 Regions Visited 2 Branch Regions 1 Pre-discovered Areas . | . . . Known Exits Taken 1 | . 1 . Unknown Exits Taken 1 | 1 . . Scrap Searched . | . . . Spaces Dug . | . . . Terrain Destroyed 34 | . 7 27 Melee . | . . . Projectile . | . . . AOE 34 | . 7 27 Terrain Rammed . | . . . Walls Destroyed . | . . . Machines Disabled . | . . . Actions | -11 -10 -10 --------- Run | Yrd Mat Sub Total 1381 | 71 1171 139 Wait 162 | . 162 . Move 1017 | 54 852 111 Hop . | . . . Pick Up 37 | 8 23 6 Fast Attach . | . . . Attach 14 | 6 7 1 Detach 1 | . 1 . Swap 15 | 1 11 3 Drop 21 | 2 10 9 Fire 114 | . 105 9 Melee . | . . . Ram . | . . . Kick . | . . . Crush . | . . . Escape Stasis . | . . . Rewire . | . . . Trap . | . . . Miscellaneous . | . . . Route ------- -11/Scrapyard -10/Materials (discovered 4 exits: *Mat x2 / [*Min] / *Sub) -10/Subcaves (discovered 1 exit: [*Rec]) History --------- Turn | Location | Event 12 | -11/Scrapyard | Discovered new exit (range 15) 68 | -11/Scrapyard | Entered Materials 292 | -10/Materials | Discovered new exit (range 7) 317 | -10/Materials | Build established: Mutant 485 | -10/Materials | Repaired Particle Gun 513 | -10/Materials | Repaired Assault Rifle 541 | -10/Materials | Repaired Aluminum Leg 747 | -10/Materials | Discovered new exit (range 9) 770 | -10/Materials | Core integrity fell below 50% 967 | -10/Materials | Core integrity fell below 20% 1021 | -10/Materials | Discovered new exit (range 13) 1579 | -10/Materials | Discovered new exit (range 13) 1592 | -10/Materials | Identified exit to Materials 1616 | -10/Materials | Identified exit to Subcaves 1618 | -10/Materials | Entered Subcaves 1621 | -10/Subcaves | Shifting Twisted Machinery released Spk. Treads 1626 | -10/Subcaves | Shifting Twisted Machinery released Sub. Power Source 1785 | -10/Subcaves | Discovered new exit (range 13) 1845 | -10/Subcaves | Ambushed by swarm of Subdwellers 1851 | -10/Subcaves | Ambushed by Subdwellers from Twisted Machinery 1861 | -10/Subcaves | Destroyed by BH-0L3(R) with Subdweller Machine Gun Last Messages --------------- 01848_ O9-LPO(R) angrily emerges from the Twisted Machinery. 01850_ O9-LPO(R) destroyed. 01850_ 9I-GTR(R) destroyed. 01851_ HV Slug penetrates ZQ-KX9(R). 01851_ ZQ-KX9(R) suffers critical hit (Destroy). 01851_ ZQ-KX9(R) destroyed. 01851_ BH-0L3(R) angrily emerges from the Twisted Machinery. 01852_ OP-2QB(R) affixes Scrap Shield Fragment to Scrap Shield. 01854_ HV Slug penetrates OP-2QB(R). 01854_ OP-2QB(R) suffers critical hit (Destroy). 01854_ X5-G7F(h) destroyed. 01855_ YO-RZM(g): "Sorry we're late! Had another grouchy Sub to deal with. Who's the new fellow?" 01856_ ET-IZZ(g) destroyed. 01858_ Scrap Shield destroyed. 01860_ OP-2QB(R) destroyed. Map ----- +----------------------------------------------------+ | ?????????????????????????????????????????????????? | | ?????????????????????????????????????????????????? | | ?????????????????????????????????????????????????? | | ?????????????????????????????????????????????????? | | ?????????????????????????????????????????????????? | | ?????????????????????????????????????????????????? | | ?####??????????????????"?????????????????????????? | | ?# ##??????????????##" ?????????????????????????? | | ?# #?????????????## ?????????????????????????? | | ## ###?###???????# " ###??????????????????????? | | # # ### #???????? " "##?????????????????????? | | ## =[ #????????# ####??????????????????? | | ?# ! #????????# ##?????????????????? | | ?## ### # ##??????## #?????????????????? | | ?# ### "####???# ! #??????????????????? | | ?## ##?#" " #*"#???# % #???????????????????? | | ??# #?#"" " " ##??# & #?########???????????? | | ## #####""=" # # ###" " #???????????? | | ## """" "" # & &! #???????????? | | """""# " # % &!&%& ###?????????? | | """"### #### = R[=%%*[ #?????????? | | ## "" #?## #??# R%== % <##?????????? | | ?## ="" #??# ##?# !RR% "% #??????????? | | ??# & "##?# #?### " #??????????? | | ??# "*&!" ### #?# ## # #??????????? | | ?### " " ### ##@ #?#" " ##??????????? | | " " "" #???????# ##?########???????????? | | " " " "" ##???????# ##????????????????????? | | ? ##" #"#""" ""##?###???# #????????????????????? | | ???####### "" ### ##### ##????????????????????? | | ????###### ###??????????????????? | | ????# """ #??????????????????? | | ????# """ ##??????????????????? | | ???# % %""### ########### #???????????????????? | | ???#########?####??????????# #???????????????????? | | ????????????????????????????##???????????????????? | | ?????????????????????????????????????????????????? | | ?????????????????????????????????????????????????? | | ?????????????????????????????????????????????????? | | ?????????????????????????????????????????????????? | | ?????????????????????????????????????????????????? | | ?????????????????????????????????????????????????? | | ?????????????????????????????????????????????????? | | ?????????????????????????????????????????????????? | | ?????????????????????????????????????????????????? | | ?????????????????????????????????????????????????? | | ?????????????????????????????????????????????????? | | ?????????????????????????????????????????????????? | | ?????????????????????????????????????????????????? | | ?????????????????????????????????????????????????? | +----------------------------------------------------+ Best States ------------- Heat Dissipation 39 Energy Generation 10 Energy Capacity 250 Matter Stores 300 Matter Capacity 300 Sight Range 16 Robot Scan Range 14 Terrain Scan Density 10 Armor Coverage 800 Evasion (%) 55 Item Schematics ----------------- None Robot Schematics ------------------ None Fabricated ------------ Nothing Alien Tech Used ----------------- None Achievements -------------- GoHome() Challenges ------------ None Game ------ Seed FireMultinovaCoupler Manual? 0 Play Time 00:25:16 Cumulative 7.7 hours Start 2024.04.08 @ 13:13:35 End 2024.04.08 @ 18:10:47 Sessions 2 Manual Loads 0 Difficulty Rogue Special Mode None Game No. 14 Rogue 14 Adventurer 0 Explorer 0 Win Type - Total 0 Types 0/0/0/0/0/0/0/0/0 Lore% 5 Gallery% 10 Achievement% 13 Wizard Run 0 Options --------- Layout 1 ASCII 0 Keyboard 0 Movement Mouse Keybinds 0 Fullscreen 1 Font 24/Smallcaps Map View 50x35 Zoom Use 0% Tactical HUD 1 Map Filters NONE Filters NONE Steam 1 RUN: f48f0e03-1a53-4fb0-af19-a9a569eb7220